[Event "Early-Titled-Tuesday-Blitz-August-29-2023"]
[Site "Chess.com"]
[Date "2023.08.29"]
[Round "2"]
[White "ferrufino64"]
[Black "Rosh1610"]
[Result "0-1"]
[WhiteElo "2078"]
[BlackElo "2440"]
[TimeControl "180+1"]
[EndTime "8:18:03 PDT"]
[Termination "Rosh1610 won on time"]

1. e4 {[%clk 0:02:54.6]} 1... c5 {[%clk 0:02:54]} 2. Nf3 {[%clk 0:02:52]} 2...
d6 {[%clk 0:02:53.6]} 3. d4 {[%clk 0:02:52.2]} 3... cxd4 {[%clk 0:02:54.5]} 4.
Nxd4 {[%clk 0:02:52.8]} 4... Nf6 {[%clk 0:02:50.3]} 5. Nc3 {[%clk 0:02:53]} 5...
a6 {[%clk 0:02:50]} 6. Be3 {[%clk 0:02:41.8]} 6... e5 {[%clk 0:02:49.4]} 7. Nb3
{[%clk 0:02:41.6]} 7... Be7 {[%clk 0:02:47.3]} 8. f3 {[%clk 0:02:42]} 8... Be6
{[%clk 0:02:47.7]} 9. Qd2 {[%clk 0:02:42.4]} 9... h5 {[%clk 0:02:47.1]} 10.
O-O-O {[%clk 0:02:42.6]} 10... Nbd7 {[%clk 0:02:47.7]} 11. Kb1 {[%clk
0:02:42.4]} 11... Rc8 {[%clk 0:02:47.9]} 12. Nd5 {[%clk 0:02:40.2]} 12... Nxd5
{[%clk 0:02:46.6]} 13. exd5 {[%clk 0:02:40.6]} 13... Bf5 {[%clk 0:02:47.3]} 14.
Bd3 {[%clk 0:02:41]} 14... Bxd3 {[%clk 0:02:47.9]} 15. Qxd3 {[%clk 0:02:41.5]}
15... Bg5 {[%clk 0:02:48.5]} 16. Bf2 {[%clk 0:02:37.5]} 16... O-O {[%clk
0:02:21.1]} 17. h4 {[%clk 0:02:24.8]} 17... Be7 {[%clk 0:02:20.3]} 18. g4 {[%clk
0:02:24.9]} 18... Nf6 {[%clk 0:02:16.2]} 19. g5 {[%clk 0:02:02.4]} 19... Nd7
{[%clk 0:02:12.8]} 20. g6 {[%clk 0:02:00.1]} 20... f5 {[%clk 0:02:12.1]} 21. f4
{[%clk 0:01:54.4]} 21... e4 {[%clk 0:02:10.8]} 22. Qe2 {[%clk 0:01:54]} 22...
Nf6 {[%clk 0:02:08.7]} 23. Nd4 {[%clk 0:01:54]} 23... Qd7 {[%clk 0:02:07.2]} 24.
Ne6 {[%clk 0:01:54.1]} 24... Rfe8 {[%clk 0:02:07.5]} 25. Bd4 {[%clk 0:01:47]}
25... Qb5 {[%clk 0:01:51]} 26. Rd3 {[%clk 0:00:29.9]} 26... exd3 {[%clk
0:01:44.3]} 27. cxd3 {[%clk 0:00:26.3]} 27... Qxd5 {[%clk 0:01:41.7]} 28. Re1
{[%clk 0:00:19.9]} 28... Ng4 {[%clk 0:01:26.3]} 29. Nxg7 {[%clk 0:00:13.9]}
29... Rf8 {[%clk 0:00:12.8]} 30. Bc3 {[%clk 0:00:02.9]} 30... Bf6 {[%clk
0:00:09]} 0-1

[Event "Early-Titled-Tuesday-Blitz-August-29-2023"]
[Site "Chess.com"]
[Date "2023.08.29"]
[Round "2"]
[White "TC2304"]
[Black "Witik"]
[Result "0-1"]
[WhiteElo "2439"]
[BlackElo "2788"]
[TimeControl "180+1"]
[EndTime "8:18:05 PDT"]
[Termination "Witik won on time"]

1. d4 {[%clk 0:03:00.9]} 1... Nf6 {[%clk 0:02:59.9]} 2. Bg5 {[%clk 0:03:01.6]}
2... d5 {[%clk 0:02:59.9]} 3. Nd2 {[%clk 0:03:01]} 3... c5 {[%clk 0:02:59.5]} 4.
e3 {[%clk 0:03:01.6]} 4... cxd4 {[%clk 0:02:54.9]} 5. exd4 {[%clk 0:03:01.5]}
5... Nc6 {[%clk 0:02:55.7]} 6. c3 {[%clk 0:02:53.6]} 6... Bf5 {[%clk 0:02:51.7]}
7. Qb3 {[%clk 0:02:49.5]} 7... Qd7 {[%clk 0:02:17.3]} 8. Ngf3 {[%clk 0:02:44.5]}
8... Ne4 {[%clk 0:02:16.3]} 9. Bf4 {[%clk 0:02:30.3]} 9... f6 {[%clk 0:02:09.8]}
10. Bb5 {[%clk 0:02:18.7]} 10... g5 {[%clk 0:02:05.4]} 11. Be3 {[%clk 0:02:07]}
11... e6 {[%clk 0:02:03]} 12. O-O {[%clk 0:02:00]} 12... h5 {[%clk 0:02:01.8]}
13. Nxe4 {[%clk 0:01:59.4]} 13... Bxe4 {[%clk 0:02:01.6]} 14. Nd2 {[%clk
0:01:59.1]} 14... Bg6 {[%clk 0:01:58.9]} 15. f4 {[%clk 0:01:59.5]} 15... g4
{[%clk 0:01:55.8]} 16. f5 {[%clk 0:01:58.4]} 16... Bxf5 {[%clk 0:01:55.2]} 17.
Rxf5 {[%clk 0:01:58.3]} 17... exf5 {[%clk 0:01:55.4]} 18. Re1 {[%clk 0:01:51.2]}
18... O-O-O {[%clk 0:01:48.3]} 19. c4 {[%clk 0:01:51.3]} 19... Kb8 {[%clk
0:01:32.9]} 20. cxd5 {[%clk 0:01:39.1]} 20... Qxd5 {[%clk 0:01:21.6]} 21. Bc4
{[%clk 0:01:38.3]} 21... Qa5 {[%clk 0:01:10.8]} 22. d5 {[%clk 0:01:35.9]} 22...
Ne5 {[%clk 0:01:05.7]} 23. Bf4 {[%clk 0:01:32.6]} 23... Bb4 {[%clk 0:01:00.8]}
24. Rxe5 {[%clk 0:01:13.5]} 24... fxe5 {[%clk 0:01:00.2]} 25. Bxe5+ {[%clk
0:01:14.4]} 25... Ka8 {[%clk 0:01:00.1]} 26. Bxh8 {[%clk 0:01:14.1]} 26... Rxh8
{[%clk 0:00:59.1]} 27. Nf1 {[%clk 0:01:08.9]} 27... Bc5+ {[%clk 0:00:52.8]} 28.
Kh1 {[%clk 0:01:08.4]} 28... Qe1 {[%clk 0:00:52.2]} 29. Qc3 {[%clk 0:00:55.8]}
29... Qxc3 {[%clk 0:00:50.6]} 30. bxc3 {[%clk 0:00:55.4]} 30... Re8 {[%clk
0:00:47.7]} 31. g3 {[%clk 0:00:49.2]} 31... f4 {[%clk 0:00:42.6]} 32. gxf4
{[%clk 0:00:46.4]} 32... h4 {[%clk 0:00:42.5]} 33. Kg2 {[%clk 0:00:38.2]} 33...
Re4 {[%clk 0:00:39.5]} 34. Bb3 {[%clk 0:00:07.3]} 34... Rxf4 {[%clk 0:00:31.7]}
35. d6 {[%clk 0:00:07.2]} 35... Rf2+ {[%clk 0:00:14.5]} 36. Kg1 {[%clk
0:00:07.8]} 36... h3 {[%clk 0:00:15]} 0-1

[Event "Early-Titled-Tuesday-Blitz-August-29-2023"]
[Site "Chess.com"]
[Date "2023.08.29"]
[Round "2"]
[White "fastestmindalive"]
[Black "KorolDimitriy75"]
[Result "1-0"]
[WhiteElo "2724"]
[BlackElo "2349"]
[TimeControl "180+1"]
[EndTime "8:18:05 PDT"]
[Termination "fastestmindalive won on time"]

1. e4 {[%clk 0:02:59.8]} 1... c5 {[%clk 0:03:00.1]} 2. Nc3 {[%clk 0:02:59.1]}
2... g6 {[%clk 0:02:59.9]} 3. f4 {[%clk 0:02:56.7]} 3... Bg7 {[%clk 0:03:00.1]}
4. Nf3 {[%clk 0:02:57.6]} 4... Nc6 {[%clk 0:03:00.1]} 5. Bb5 {[%clk 0:02:58.2]}
5... Nd4 {[%clk 0:03:00]} 6. a4 {[%clk 0:02:58.7]} 6... e6 {[%clk 0:02:58.9]} 7.
e5 {[%clk 0:02:58.2]} 7... a6 {[%clk 0:02:58.7]} 8. Bc4 {[%clk 0:02:58.3]} 8...
f5 {[%clk 0:02:55.4]} 9. h4 {[%clk 0:02:48.3]} 9... Nh6 {[%clk 0:02:32.2]} 10.
h5 {[%clk 0:02:46.7]} 10... O-O {[%clk 0:01:41.7]} 11. d3 {[%clk 0:02:35.6]}
11... d6 {[%clk 0:01:27]} 12. Be3 {[%clk 0:02:28.7]} 12... Ng4 {[%clk
0:00:50.1]} 13. Nxd4 {[%clk 0:02:12.7]} 13... Nxe3 {[%clk 0:00:47.4]} 14. Nxe6
{[%clk 0:02:12.7]} 14... Bxe6 {[%clk 0:00:24.4]} 15. Bxe6+ {[%clk 0:02:13.6]}
15... Kh8 {[%clk 0:00:24.2]} 16. hxg6 {[%clk 0:02:12.6]} 16... h6 {[%clk
0:00:20.8]} 17. Qh5 {[%clk 0:02:11.9]} 17... dxe5 {[%clk 0:00:18.6]} 18. Kd2
{[%clk 0:01:56.1]} 18... Nxg2 {[%clk 0:00:18]} 19. Qg5 {[%clk 0:01:52.8]} 19...
Qxg5 {[%clk 0:00:15.9]} 20. fxg5 {[%clk 0:01:53.7]} 20... Nf4 {[%clk 0:00:14]}
21. Bf7 {[%clk 0:01:49.4]} 21... h5 {[%clk 0:00:13.2]} 22. Rxh5+ {[%clk
0:01:47.5]} 22... Nxh5 {[%clk 0:00:12.5]} 23. Rh1 {[%clk 0:01:48.2]} 23... Rxf7
{[%clk 0:00:12.9]} 24. gxf7 {[%clk 0:01:47.7]} 24... Kh7 {[%clk 0:00:12.7]} 25.
Rxh5+ {[%clk 0:01:41.6]} 25... Kg6 {[%clk 0:00:13]} 26. Rh2 {[%clk 0:01:32.6]}
26... Rf8 {[%clk 0:00:13]} 27. Nd5 {[%clk 0:01:21.7]} 27... Rxf7 {[%clk
0:00:13.2]} 28. Kc3 {[%clk 0:01:22.4]} 28... Kxg5 {[%clk 0:00:11.8]} 29. Rg2+
{[%clk 0:01:21.9]} 29... Kh6 {[%clk 0:00:11.6]} 30. Kc4 {[%clk 0:01:22.8]} 30...
f4 {[%clk 0:00:10.3]} 31. Nc3 {[%clk 0:01:20.9]} 31... f3 {[%clk 0:00:10.1]} 32.
Rf2 {[%clk 0:01:19.2]} 32... Kg5 {[%clk 0:00:10.1]} 33. Ne4+ {[%clk 0:01:19.2]}
33... Kg4 {[%clk 0:00:10.2]} 34. Rh2 {[%clk 0:01:14]} 34... Bf8 {[%clk
0:00:06.6]} 35. Kd5 {[%clk 0:01:12.9]} 35... Rf4 {[%clk 0:00:04.3]} 36. a5
{[%clk 0:01:10.5]} 36... Be7 {[%clk 0:00:02.3]} 37. Rh7 {[%clk 0:01:09.4]} 37...
Bh4 {[%clk 0:00:02.2]} 38. Rg7+ {[%clk 0:01:08.8]} 38... Kh3 {[%clk 0:00:02.4]}
39. Kxe5 {[%clk 0:01:08.3]} 39... Rf8 {[%clk 0:00:02]} 40. Rxb7 {[%clk
0:01:03.1]} 40... f2 {[%clk 0:00:02.6]} 41. Nd2 {[%clk 0:01:02.4]} 41... f1=Q
{[%clk 0:00:02.6]} 42. Nxf1 {[%clk 0:01:02.5]} 42... Rxf1 {[%clk 0:00:03.5]} 43.
Kd5 {[%clk 0:00:59.3]} 43... Rf2 {[%clk 0:00:03.4]} 44. c4 {[%clk 0:00:59.1]}
44... Rd2 {[%clk 0:00:03.5]} 45. Rb3 {[%clk 0:00:58.1]} 45... Bf2 {[%clk
0:00:03]} 46. Kc6 {[%clk 0:00:57.9]} 46... Bd4 {[%clk 0:00:03.9]} 47. Kb6 {[%clk
0:00:56.8]} 47... Kg3 {[%clk 0:00:02.5]} 48. Kxa6 {[%clk 0:00:56.6]} 48... Kf3
{[%clk 0:00:03.4]} 49. Kb5 {[%clk 0:00:55.7]} 49... Ke3 {[%clk 0:00:04.3]} 50.
a6 {[%clk 0:00:55.8]} 50... Be5 {[%clk 0:00:03.8]} 51. a7 {[%clk 0:00:55.7]} 1-0

[Event "Early-Titled-Tuesday-Blitz-August-29-2023"]
[Site "Chess.com"]
[Date "2023.08.29"]
[Round "2"]
[White "TigranHH"]
[Black "ChessicallyInclined"]
[Result "0-1"]
[WhiteElo "2320"]
[BlackElo "2721"]
[TimeControl "180+1"]
[EndTime "8:18:05 PDT"]
[Termination "ChessicallyInclined won on time"]

1. d4 {[%clk 0:03:00.9]} 1... Nf6 {[%clk 0:02:59.8]} 2. Nf3 {[%clk 0:03:00.5]}
2... d5 {[%clk 0:03:00]} 3. c4 {[%clk 0:02:58.9]} 3... c6 {[%clk 0:03:00.4]} 4.
Nc3 {[%clk 0:02:59.5]} 4... e6 {[%clk 0:03:00.4]} 5. e3 {[%clk 0:02:59.8]} 5...
Nbd7 {[%clk 0:03:00.1]} 6. Bd3 {[%clk 0:03:00.5]} 6... dxc4 {[%clk 0:03:00.4]}
7. Bxc4 {[%clk 0:03:01.4]} 7... b5 {[%clk 0:03:01]} 8. Be2 {[%clk 0:03:01.3]}
8... Bd6 {[%clk 0:03:01.3]} 9. e4 {[%clk 0:03:00.2]} 9... e5 {[%clk 0:03:01.5]}
10. O-O {[%clk 0:03:00]} 10... O-O {[%clk 0:02:59.5]} 11. Bg5 {[%clk 0:02:54.6]}
11... Qc7 {[%clk 0:02:58.7]} 12. dxe5 {[%clk 0:02:45.3]} 12... Nxe5 {[%clk
0:02:58.8]} 13. Bxf6 {[%clk 0:02:41.3]} 13... gxf6 {[%clk 0:02:58.8]} 14. Nd4
{[%clk 0:02:15.1]} 14... Rd8 {[%clk 0:02:57.4]} 15. Qc1 {[%clk 0:02:08.3]} 15...
Ng6 {[%clk 0:02:26.6]} 16. g3 {[%clk 0:02:03]} 16... Bh3 {[%clk 0:02:13.6]} 17.
Rd1 {[%clk 0:02:00.1]} 17... Be5 {[%clk 0:02:04]} 18. Nf3 {[%clk 0:01:41.3]}
18... Rxd1+ {[%clk 0:02:00.9]} 19. Bxd1 {[%clk 0:01:36.3]} 19... Rd8 {[%clk
0:01:49.9]} 20. Qh6 {[%clk 0:01:29.7]} 20... Be6 {[%clk 0:01:38.5]} 21. Rc1
{[%clk 0:01:26.8]} 21... Bxc3 {[%clk 0:01:08.5]} 22. bxc3 {[%clk 0:01:22.7]}
22... Bxa2 {[%clk 0:01:08.6]} 23. Nd4 {[%clk 0:01:18.2]} 23... Qd6 {[%clk
0:00:42.5]} 24. Ra1 {[%clk 0:01:04.6]} 24... Be6 {[%clk 0:00:39.3]} 25. Be2
{[%clk 0:00:39]} 25... Rd7 {[%clk 0:00:25.6]} 26. Ra6 {[%clk 0:00:36.9]} 26...
Qf8 {[%clk 0:00:20.4]} 27. Qe3 {[%clk 0:00:24.2]} 27... Ne5 {[%clk 0:00:16.1]}
28. Qf4 {[%clk 0:00:22.1]} 28... Qd8 {[%clk 0:00:11.7]} 29. Nxc6 {[%clk
0:00:17.8]} 29... Nxc6 {[%clk 0:00:11.8]} 30. Rxc6 {[%clk 0:00:18.5]} 30... Bh3
{[%clk 0:00:08.6]} 31. f3 {[%clk 0:00:12.6]} 31... Rd1+ {[%clk 0:00:04.1]} 32.
Kf2 {[%clk 0:00:13]} 32... Rd2 {[%clk 0:00:04.4]} 33. Qe3 {[%clk 0:00:08]} 33...
Be6 {[%clk 0:00:03.7]} 34. Ra6 {[%clk 0:00:04.5]} 34... Bc4 {[%clk 0:00:03.3]}
0-1

[Event "Early-Titled-Tuesday-Blitz-August-29-2023"]
[Site "Chess.com"]
[Date "2023.08.29"]
[Round "2"]
[White "noblerone"]
[Black "Thormento16"]
[Result "1-0"]
[WhiteElo "2557"]
[BlackElo "2366"]
[TimeControl "180+1"]
[EndTime "8:18:06 PDT"]
[Termination "noblerone won by checkmate"]

1. d4 {[%clk 0:03:00.9]} 1... Nf6 {[%clk 0:02:56.9]} 2. Nf3 {[%clk 0:03:00.2]}
2... e6 {[%clk 0:02:54.5]} 3. Bg5 {[%clk 0:03:00.6]} 3... c5 {[%clk 0:02:53.4]}
4. e3 {[%clk 0:03:00.1]} 4... Nc6 {[%clk 0:02:52.8]} 5. c3 {[%clk 0:02:58.7]}
5... Be7 {[%clk 0:02:44.6]} 6. Nbd2 {[%clk 0:02:58]} 6... Qb6 {[%clk 0:02:43.3]}
7. Rb1 {[%clk 0:02:57.4]} 7... d5 {[%clk 0:02:41.6]} 8. Bd3 {[%clk 0:02:56]}
8... h6 {[%clk 0:02:38.7]} 9. Bh4 {[%clk 0:02:55.9]} 9... O-O {[%clk 0:02:38]}
10. O-O {[%clk 0:02:55.6]} 10... a6 {[%clk 0:02:11.1]} 11. Ne5 {[%clk
0:02:47.9]} 11... Qd8 {[%clk 0:02:04.8]} 12. f4 {[%clk 0:02:46.5]} 12... Nd7
{[%clk 0:01:47.2]} 13. Bxe7 {[%clk 0:02:09.8]} 13... Nxe7 {[%clk 0:01:48.1]} 14.
Qh5 {[%clk 0:02:06]} 14... Nf6 {[%clk 0:01:41.8]} 15. Qh3 {[%clk 0:02:04.8]}
15... c4 {[%clk 0:01:39.3]} 16. Bc2 {[%clk 0:02:04.7]} 16... Nf5 {[%clk
0:01:39.8]} 17. g4 {[%clk 0:01:58.4]} 17... Nd6 {[%clk 0:01:37.6]} 18. Qg2
{[%clk 0:01:49.2]} 18... b5 {[%clk 0:01:17.3]} 19. a3 {[%clk 0:01:47.8]} 19...
Bb7 {[%clk 0:01:17]} 20. g5 {[%clk 0:01:35.3]} 20... hxg5 {[%clk 0:01:16.7]} 21.
fxg5 {[%clk 0:01:35.2]} 21... Nfe4 {[%clk 0:01:17.4]} 22. Nxe4 {[%clk
0:01:33.8]} 22... Nxe4 {[%clk 0:01:18.3]} 23. Bxe4 {[%clk 0:01:33.7]} 23... dxe4
{[%clk 0:01:19.2]} 24. Rf4 {[%clk 0:01:30.6]} 24... f6 {[%clk 0:01:17.1]} 25.
gxf6 {[%clk 0:01:23.2]} 25... Rxf6 {[%clk 0:01:18]} 26. Rbf1 {[%clk 0:01:20.6]}
26... Rxf4 {[%clk 0:01:09.1]} 27. Rxf4 {[%clk 0:01:19.5]} 27... Qc7 {[%clk
0:01:02.7]} 28. Qh3 {[%clk 0:00:54.2]} 28... Bd5 {[%clk 0:00:56.2]} 29. Rh4
{[%clk 0:00:53.9]} 29... Kf8 {[%clk 0:00:56.8]} 30. Rh8+ {[%clk 0:00:48.9]}
30... Ke7 {[%clk 0:00:57.2]} 31. Rh7 {[%clk 0:00:28.5]} 31... Rg8 {[%clk
0:00:56.9]} 32. Qg4 {[%clk 0:00:28]} 32... Kd8 {[%clk 0:00:51.7]} 33. Qg6 {[%clk
0:00:21]} 33... a5 {[%clk 0:00:41.8]} 34. h4 {[%clk 0:00:20.5]} 34... b4 {[%clk
0:00:40.9]} 35. axb4 {[%clk 0:00:21]} 35... axb4 {[%clk 0:00:41.8]} 36. h5
{[%clk 0:00:21.3]} 36... b3 {[%clk 0:00:24.7]} 37. h6 {[%clk 0:00:21.2]} 37...
Qa5 {[%clk 0:00:24.4]} 38. Qf7 {[%clk 0:00:15.4]} 38... Qa1+ {[%clk 0:00:23.5]}
39. Kg2 {[%clk 0:00:15.3]} 39... Qxb2+ {[%clk 0:00:24.4]} 40. Kg3 {[%clk
0:00:15.8]} 40... Bc6 {[%clk 0:00:13.6]} 41. Nxc6+ {[%clk 0:00:12.7]} 41... Kc8
{[%clk 0:00:14.2]} 42. Qxg8+ {[%clk 0:00:12.8]} 42... Kc7 {[%clk 0:00:14.2]} 43.
Rxg7+ {[%clk 0:00:12.9]} 43... Kxc6 {[%clk 0:00:15.1]} 44. Qc8+ {[%clk
0:00:12.9]} 44... Kd5 {[%clk 0:00:15.8]} 45. Qd7# {[%clk 0:00:12.1]} 1-0

[Event "Early-Titled-Tuesday-Blitz-August-29-2023"]
[Site "Chess.com"]
[Date "2023.08.29"]
[Round "2"]
[White "JoliyRoger"]
[Black "MeisterJabo"]
[Result "0-1"]
[WhiteElo "2498"]
[BlackElo "2334"]
[TimeControl "180+1"]
[EndTime "8:18:06 PDT"]
[Termination "MeisterJabo won on time"]

1. Nf3 {[%clk 0:02:28.7]} 1... Nf6 {[%clk 0:02:59.1]} 2. d4 {[%clk 0:02:28.3]}
2... b6 {[%clk 0:02:50.5]} 3. c4 {[%clk 0:02:26.8]} 3... Bb7 {[%clk 0:02:50.5]}
4. Nc3 {[%clk 0:02:27.3]} 4... e6 {[%clk 0:02:50.6]} 5. a3 {[%clk 0:01:54]} 5...
Be7 {[%clk 0:02:46.4]} 6. Qc2 {[%clk 0:01:53]} 6... d5 {[%clk 0:02:45.1]} 7. Bg5
{[%clk 0:01:52.4]} 7... O-O {[%clk 0:02:42.7]} 8. Bxf6 {[%clk 0:01:52.8]} 8...
Bxf6 {[%clk 0:02:42.3]} 9. cxd5 {[%clk 0:01:53.7]} 9... exd5 {[%clk 0:02:40.7]}
10. Rd1 {[%clk 0:01:54.6]} 10... Nd7 {[%clk 0:02:34.5]} 11. e3 {[%clk
0:01:53.8]} 11... c5 {[%clk 0:02:24.6]} 12. Be2 {[%clk 0:01:48.3]} 12... c4
{[%clk 0:01:40.5]} 13. O-O {[%clk 0:01:46.4]} 13... a6 {[%clk 0:01:40.9]} 14. e4
{[%clk 0:01:39.1]} 14... dxe4 {[%clk 0:01:40.6]} 15. Nxe4 {[%clk 0:01:39.4]}
15... b5 {[%clk 0:01:33.3]} 16. Ne5 {[%clk 0:01:29]} 16... Bxe4 {[%clk 0:01:11]}
17. Qxe4 {[%clk 0:01:27.7]} 17... Bxe5 {[%clk 0:01:11.3]} 18. dxe5 {[%clk
0:01:27.1]} 18... Qe7 {[%clk 0:01:11.9]} 19. f4 {[%clk 0:01:18.6]} 19... Nc5
{[%clk 0:01:09.8]} 20. Qc6 {[%clk 0:01:06.3]} 20... Rfc8 {[%clk 0:01:01.7]} 21.
Qd6 {[%clk 0:01:01.9]} 21... Qa7 {[%clk 0:00:52.3]} 22. Kh1 {[%clk 0:01:01]}
22... h6 {[%clk 0:00:52.6]} 23. f5 {[%clk 0:00:41.4]} 23... Rd8 {[%clk
0:00:47.9]} 24. Qxd8+ {[%clk 0:00:26.2]} 24... Rxd8 {[%clk 0:00:48.8]} 25. Rxd8+
{[%clk 0:00:24.9]} 25... Kh7 {[%clk 0:00:49.7]} 26. h3 {[%clk 0:00:08.6]} 26...
Qe7 {[%clk 0:00:40.8]} 27. Rd5 {[%clk 0:00:08]} 27... Ne4 {[%clk 0:00:35.8]} 28.
Kh2 {[%clk 0:00:08.3]} 28... f6 {[%clk 0:00:32.5]} 29. e6 {[%clk 0:00:07]} 29...
Qc7+ {[%clk 0:00:32.4]} 30. Kg1 {[%clk 0:00:07.7]} 30... Qa7+ {[%clk 0:00:19.4]}
31. Kh2 {[%clk 0:00:05.6]} 31... Qc7+ {[%clk 0:00:18.7]} 32. Kg1 {[%clk
0:00:06.2]} 32... Ng3 {[%clk 0:00:19.3]} 33. Rf3 {[%clk 0:00:04.5]} 33... Nxe2+
{[%clk 0:00:18.9]} 34. Kf2 {[%clk 0:00:04.7]} 34... Nc1 {[%clk 0:00:18]} 35. Re3
{[%clk 0:00:02.4]} 35... Nd3+ {[%clk 0:00:17.3]} 0-1

[Event "Early-Titled-Tuesday-Blitz-August-29-2023"]
[Site "Chess.com"]
[Date "2023.08.29"]
[Round "2"]
[White "Arystanner"]
[Black "vladoboch"]
[Result "0-1"]
[WhiteElo "2855"]
[BlackElo "2440"]
[TimeControl "180+1"]
[EndTime "8:18:08 PDT"]
[Termination "vladoboch won by checkmate"]

1. d4 {[%clk 0:02:58.8]} 1... Nf6 {[%clk 0:02:59.7]} 2. c4 {[%clk 0:02:59.2]}
2... g6 {[%clk 0:03:00.2]} 3. Nc3 {[%clk 0:02:59.5]} 3... Bg7 {[%clk 0:03:00.8]}
4. e4 {[%clk 0:02:59.9]} 4... d6 {[%clk 0:03:01.5]} 5. Be2 {[%clk 0:03:00.1]}
5... O-O {[%clk 0:03:02.2]} 6. Nf3 {[%clk 0:03:00.1]} 6... e5 {[%clk 0:03:02.7]}
7. O-O {[%clk 0:03:00.4]} 7... Nc6 {[%clk 0:03:03.1]} 8. d5 {[%clk 0:03:00.7]}
8... Ne7 {[%clk 0:03:03.8]} 9. b4 {[%clk 0:03:01]} 9... Ne8 {[%clk 0:03:04]} 10.
c5 {[%clk 0:02:49.2]} 10... h6 {[%clk 0:02:57.3]} 11. a4 {[%clk 0:02:38.5]}
11... f5 {[%clk 0:02:57.2]} 12. Bc4 {[%clk 0:02:39]} 12... f4 {[%clk 0:02:55.6]}
13. b5 {[%clk 0:02:35.1]} 13... g5 {[%clk 0:02:54.2]} 14. Nd2 {[%clk 0:02:31]}
14... g4 {[%clk 0:02:47.6]} 15. f3 {[%clk 0:02:31.2]} 15... g3 {[%clk
0:02:46.1]} 16. Ba3 {[%clk 0:02:22.8]} 16... Ng6 {[%clk 0:02:44.6]} 17. Re1
{[%clk 0:02:18.7]} 17... Qh4 {[%clk 0:02:34.8]} 18. Nf1 {[%clk 0:02:18.3]} 18...
Kh7 {[%clk 0:02:27.3]} 19. b6 {[%clk 0:02:18.4]} 19... Rg8 {[%clk 0:02:17.5]}
20. bxc7 {[%clk 0:02:15.4]} 20... Bf8 {[%clk 0:02:17.6]} 21. cxd6 {[%clk
0:02:13.2]} 21... Bxd6 {[%clk 0:02:15.9]} 22. Nb5 {[%clk 0:02:07.6]} 22... Bxa3
{[%clk 0:01:55.1]} 23. Rxa3 {[%clk 0:02:08.5]} 23... gxh2+ {[%clk 0:01:45.2]}
24. Nxh2 {[%clk 0:02:02.2]} 24... Qg3 {[%clk 0:01:45.2]} 25. d6 {[%clk
0:01:53.2]} 25... Rg7 {[%clk 0:01:45.4]} 26. Ra2 {[%clk 0:01:31.6]} 26... Nh4
{[%clk 0:01:43]} 27. Bf1 {[%clk 0:01:32.2]} 27... Nf6 {[%clk 0:01:35.9]} 28. Qe2
{[%clk 0:01:12.8]} 28... Bh3 {[%clk 0:01:28]} 29. Qf2 {[%clk 0:01:08.1]} 29...
Qg5 {[%clk 0:01:01.7]} 30. Kh1 {[%clk 0:01:06.1]} 30... Rag8 {[%clk 0:01:02]}
31. Ree2 {[%clk 0:00:51.2]} 31... Nh5 {[%clk 0:01:00.2]} 32. Rec2 {[%clk
0:00:31.3]} 32... Nxg2 {[%clk 0:00:39.5]} 33. Bxg2 {[%clk 0:00:29.3]} 33...
Bxg2+ {[%clk 0:00:36]} 34. Qxg2 {[%clk 0:00:25.6]} 34... Qh4 {[%clk 0:00:36.9]}
35. c8=Q {[%clk 0:00:13.5]} 35... Qe1+ {[%clk 0:00:19.4]} 36. Nf1 {[%clk
0:00:13.2]} 36... Rxg2 {[%clk 0:00:14]} 37. Qf5+ {[%clk 0:00:11.7]} 37... R2g6
{[%clk 0:00:11.3]} 38. Rc7+ {[%clk 0:00:11]} 38... Ng7 {[%clk 0:00:11.2]} 39.
Qxe5 {[%clk 0:00:11.3]} 39... Qxf1+ {[%clk 0:00:11.1]} 40. Kh2 {[%clk
0:00:11.8]} 40... Qg1+ {[%clk 0:00:11.5]} 41. Kh3 {[%clk 0:00:12.5]} 41... Qg3#
{[%clk 0:00:12.4]} 0-1

[Event "Early-Titled-Tuesday-Blitz-August-29-2023"]
[Site "Chess.com"]
[Date "2023.08.29"]
[Round "2"]
[White "C_K_G"]
[Black "SAInt_666"]
[Result "0-1"]
[WhiteElo "1993"]
[BlackElo "2680"]
[TimeControl "180+1"]
[EndTime "8:18:11 PDT"]
[Termination "SAInt_666 won on time"]

1. e4 {[%clk 0:03:00.9]} 1... c6 {[%clk 0:02:59.9]} 2. Nf3 {[%clk 0:02:55.8]}
2... d5 {[%clk 0:03:00.1]} 3. Nc3 {[%clk 0:02:55.9]} 3... dxe4 {[%clk
0:03:00.5]} 4. Nxe4 {[%clk 0:02:56.2]} 4... Nf6 {[%clk 0:03:01.2]} 5. Nxf6+
{[%clk 0:02:56.4]} 5... exf6 {[%clk 0:03:01.2]} 6. d4 {[%clk 0:02:57]} 6... Bd6
{[%clk 0:03:00.7]} 7. Bd3 {[%clk 0:02:54.6]} 7... O-O {[%clk 0:03:00.1]} 8. O-O
{[%clk 0:02:54.7]} 8... Bg4 {[%clk 0:03:00]} 9. h3 {[%clk 0:02:52.4]} 9... Bh5
{[%clk 0:02:59.2]} 10. Re1 {[%clk 0:02:51.9]} 10... Nd7 {[%clk 0:02:57.3]} 11.
Be3 {[%clk 0:02:49.3]} 11... Qc7 {[%clk 0:02:55.3]} 12. Be2 {[%clk 0:02:42.8]}
12... Rfe8 {[%clk 0:02:53.3]} 13. Nh4 {[%clk 0:02:36.2]} 13... Bxe2 {[%clk
0:02:47.7]} 14. Qxe2 {[%clk 0:02:35.4]} 14... g6 {[%clk 0:02:47.6]} 15. Nf3
{[%clk 0:02:27.5]} 15... Nf8 {[%clk 0:02:40.3]} 16. Qd3 {[%clk 0:02:25.9]} 16...
b5 {[%clk 0:02:37.8]} 17. c4 {[%clk 0:02:24.7]} 17... bxc4 {[%clk 0:02:34.8]}
18. Qxc4 {[%clk 0:02:23.7]} 18... Rac8 {[%clk 0:02:35.5]} 19. Rac1 {[%clk
0:02:22.3]} 19... Qb7 {[%clk 0:02:33]} 20. Rc2 {[%clk 0:02:17.5]} 20... Nd7
{[%clk 0:02:26.2]} 21. Bh6 {[%clk 0:01:57.5]} 21... Rxe1+ {[%clk 0:02:12.6]} 22.
Nxe1 {[%clk 0:01:58.4]} 22... Nb6 {[%clk 0:02:11]} 23. Qd3 {[%clk 0:01:53.4]}
23... Nd5 {[%clk 0:02:05.4]} 24. Qf3 {[%clk 0:01:52.9]} 24... Qb4 {[%clk
0:01:52]} 25. Rd2 {[%clk 0:01:41.3]} 25... Re8 {[%clk 0:01:45.8]} 26. Nd3 {[%clk
0:01:27]} 26... Qxd4 {[%clk 0:01:40.8]} 27. g3 {[%clk 0:01:24.3]} 27... Qc4
{[%clk 0:01:28.4]} 28. Re2 {[%clk 0:01:10.9]} 28... Rxe2 {[%clk 0:01:10]} 29.
Qxe2 {[%clk 0:01:10.3]} 29... Ne7 {[%clk 0:01:10.5]} 30. b3 {[%clk 0:01:04.4]}
30... Qe6 {[%clk 0:01:05.2]} 31. Qf3 {[%clk 0:01:00.2]} 31... Nf5 {[%clk
0:01:01.8]} 32. Bd2 {[%clk 0:00:44.3]} 32... Nd4 {[%clk 0:00:56.7]} 33. Qe3
{[%clk 0:00:35.4]} 33... Qd5 {[%clk 0:00:43]} 34. Ne1 {[%clk 0:00:23.6]} 34...
h5 {[%clk 0:00:36.2]} 35. Bc3 {[%clk 0:00:20.5]} 35... Be5 {[%clk 0:00:28.7]}
36. f4 {[%clk 0:00:20.3]} 36... Nf5 {[%clk 0:00:19.4]} 37. Qc1 {[%clk 0:00:15]}
37... Qc5+ {[%clk 0:00:19.5]} 0-1